bitfinex-derivatives/quotes_BTCF0:USTF0_20250626
["timestamp","ask_amount","ask_price","bid_price","bid_amount"]
[1750901469664,2.00468744,107490.0,107480.0,0.007]
[1750901470163,0.1859812,107480.0,107470.0,0.00093045]
[1750901470367,0.1860331,107450.0,107440.0,1.09697359]
[1750901470865,0.2814331,107450.0,107440.0,1.09697359]
[1750901471377,0.2814331,107450.0,107440.0,1.08760135]
[1750901471568,0.2824331,107450.0,107440.0,1.09960135]
[1750901471769,0.2824331,107450.0,107440.0,0.73880135]
[1750901472670,0.9141131,107450.0,107440.0,0.73880135]
[1750901472867,0.9141131,107450.0,107440.0,0.52588905]
[1750901473370,0.9131131,107450.0,107440.0,0.52188905]
[1750901473565,0.9131131,107450.0,107440.0,0.19496761]
[1750901473871,0.98847725,107450.0,107440.0,0.01593071]
[1750901474059,1.67927725,107450.0,107440.0,0.01593071]
[1750901474262,1.34927725,107450.0,107440.0,0.20198111]
[1750901474463,0.186085,107420.0,107410.0,0.28007247]
[1750901474664,0.186085,107420.0,107410.0,0.56048161]
[1750901474865,0.218285,107420.0,107410.0,0.56048161]
[1750901475068,0.218285,107420.0,107410.0,0.62208161]
[1750901475369,0.248685,107420.0,107410.0,0.57555671]
[1750901475570,0.279885,107420.0,107410.0,0.57555671]
[1750901475762,0.280885,107420.0,107410.0,0.55095671]
[1750901476471,0.280885,107420.0,107410.0,0.55495671]
[1750901477771,0.280885,107420.0,107410.0,0.27454757]
[1750901477970,0.280885,107420.0,107410.0,0.55495671]
[1750901478174,0.280885,107420.0,107410.0,0.58805671]
[1750901479572,0.290885,107420.0,107410.0,0.58805671]
[1750901483568,0.290885,107420.0,107410.0,0.55495671]
[1750901484274,0.290885,107420.0,107410.0,0.50844251]
[1750901484475,0.290885,107420.0,107410.0,0.01193097]
[1750901486175,0.651685,107420.0,107410.0,0.01193097]
[1750901486388,0.651685,107420.0,107410.0,0.19803327]
[1750901487882,0.651685,107420.0,107410.0,0.01193097]
[1750901489785,0.651685,107420.0,107410.0,0.19803327]
[1750901490673,0.651685,107420.0,107410.0,0.01193097]
[1750901491679,0.641685,107420.0,107410.0,0.01193097]
[1750901491884,1.26209414,107420.0,107410.0,0.01193097]
[1750901493175,1.44828614,107420.0,107410.0,0.01193097]
[1750901493376,2.94828614,107420.0,107410.0,0.01193097]
[1750901493774,2.76209414,107420.0,107410.0,0.01193097]
[1750901493980,2.77123433,107420.0,107410.0,0.01193097]
[1750901494185,0.186137,107390.0,107380.0,1.98885667]
[1750901494373,0.546937,107390.0,107380.0,0.23105123]
[1750901494682,0.626937,107390.0,107380.0,0.06453123]
[1750901494881,0.720537,107390.0,107380.0,0.03143123]
[1750901495083,0.720537,107390.0,107380.0,0.00093123]
[1750901495276,0.720537,107390.0,107380.0,0.00593123]
[1750901495481,0.720537,107390.0,107380.0,0.19208553]
[1750901495683,0.721537,107390.0,107380.0,0.19708553]
[1750901496177,0.721537,107390.0,107380.0,0.22558553]
[1750901496383,0.721537,107390.0,107380.0,0.53739467]
[1750901496778,0.721537,107390.0,107380.0,0.25698553]
[1750901496970,0.79611392,107390.0,107380.0,0.53739467]
[1750901497784,0.79611392,107390.0,107380.0,0.25698553]
[1750901497983,0.79611392,107390.0,107380.0,0.53739467]
[1750901500288,0.79611392,107390.0,107380.0,0.53339467]
[1750901500785,0.79611392,107390.0,107380.0,0.25298553]
[1750901501486,1.41555392,107390.0,107380.0,0.53339467]
[1750901501682,1.68555392,107390.0,107380.0,0.53339467]
[1750901502291,0.61171392,107390.0,107380.0,0.89419467]
[1750901502491,0.26171392,107390.0,107380.0,0.97419467]
[1750901503591,0.07557692,107390.0,107380.0,1.13427467]
[1750901505392,0.001,107390.0,107380.0,1.57052267]
[1750901505996,0.001,107390.0,107380.0,1.86182267]
[1750901507193,0.20305432,107410.0,107400.0,0.1861197]
[1750901507388,0.22827557,107410.0,107400.0,1.68528884]
[1750901507593,0.22827557,107410.0,107400.0,1.74838884]
[1750901507795,0.01693792,107410.0,107400.0,2.02879798]
[1750901507990,0.01693792,107410.0,107400.0,2.38959798]
[1750901508588,0.02093792,107410.0,107400.0,2.11018884]
[1750901509496,0.02193792,107410.0,107400.0,2.11018884]
[1750901511296,0.20804022,107410.0,107400.0,2.11018884]
[1750901515392,0.56884022,107410.0,107400.0,0.58032884]
[1750901515698,1.32364936,107410.0,107400.0,0.001]
[1750901515900,0.66324022,107410.0,107400.0,0.1871196]
[1750901516100,0.67324022,107410.0,107400.0,0.1871196]
[1750901519000,0.67324022,107410.0,107400.0,0.001]
[1750901519202,0.66324022,107410.0,107400.0,0.001]
[1750901519401,1.29890973,107410.0,107400.0,0.001]
[1750901520895,0.68850059,107410.0,107400.0,0.001]
[1750901521099,1.01850059,107410.0,107400.0,0.001]
[1750901522300,1.01855195,107410.0,107400.0,0.001]
[1750901523615,0.16164965,107410.0,107400.0,0.46752884]
[1750901523801,0.22809168,107410.0,107400.0,1.60728884]
[1750901524002,0.22809168,107410.0,107400.0,1.66968884]
[1750901524499,0.04198928,107410.0,107400.0,1.66968884]
[1750901525695,0.025,107410.0,107400.0,1.66968884]
[1750901526805,0.2111023,107410.0,107400.0,1.66968884]
[1750901528306,0.025,107410.0,107400.0,1.66968884]
[1750901529307,0.025,107410.0,107400.0,1.74968884]
[1750901529509,0.2111023,107410.0,107400.0,1.66968884]
[1750901529699,0.2111023,107410.0,107400.0,1.74968884]
[1750901530211,0.025,107410.0,107400.0,1.4692797]
[1750901530502,0.025,107410.0,107400.0,2.03009798]
[1750901530698,0.005,107410.0,107400.0,2.12200449]
[1750901530901,0.005,107410.0,107400.0,2.19594516]
[1750901531205,0.005,107410.0,107400.0,2.41330449]
[1750901531417,0.01705669,107430.0,107420.0,0.46649414]
[1750901531617,0.01705669,107430.0,107420.0,1.68185414]
[1750901531911,0.01705669,107430.0,107420.0,1.74565414]
[1750901532112,0.01705669,107430.0,107420.0,1.75496744]
[1750901532303,0.01705669,107430.0,107420.0,2.11576744]
[1750901532704,0.02905669,107430.0,107420.0,2.11676744]
[1750901533713,0.02605669,107430.0,107420.0,2.11676744]
[1750901534216,0.01905669,107430.0,107420.0,2.11576744]
[1750901535806,0.20512439,107430.0,107420.0,1.7553583]
[1750901536016,0.01905669,107430.0,107420.0,2.03576744]
[1750901536313,0.01905669,107430.0,107420.0,2.11576744]
[1750901536513,0.01905669,107430.0,107420.0,2.03576744]
[1750901537407,0.20512439,107430.0,107420.0,0.9807983]
[1750901537713,0.20512439,107430.0,107420.0,2.00192744]
[1750901537909,0.29962439,107430.0,107420.0,2.00192744]
[1750901538211,0.29962439,107430.0,107420.0,2.03412744]
[1750901539612,0.01905669,107430.0,107420.0,2.03412744]
[1750901539822,0.01905669,107430.0,107420.0,2.11412744]
[1750901541312,0.01905669,107430.0,107420.0,2.11712744]
[1750901542114,0.3618,107450.0,107440.0,0.1860504]
[1750901542319,0.697833,107450.0,107440.0,1.15921954]
[1750901542507,0.5118,107450.0,107440.0,1.38219954]
[1750901543524,0.697833,107450.0,107440.0,1.30219954]
[1750901543716,0.698833,107450.0,107440.0,1.30219954]
[1750901543912,0.152,107450.0,107440.0,2.02340868]
[1750901544118,0.002,107450.0,107440.0,2.02340868]
[1750901544512,0.002,107450.0,107440.0,1.3825904]
[1750901544716,0.002,107450.0,107440.0,1.66299954]
[1750901545320,0.001,107450.0,107440.0,1.74499954]
[1750901546214,0.001,107450.0,107440.0,2.02740868]
[1750901546727,0.001,107450.0,107440.0,2.02540868]
[1750901546914,0.002,107450.0,107440.0,1.4685904]
[1750901547225,0.002,107450.0,107440.0,1.66899954]
[1750901547427,0.002,107450.0,107440.0,1.74899954]
[1750901549013,0.1880149,107450.0,107440.0,0.97815954]
[1750901549327,0.1880149,107450.0,107440.0,1.27891954]
[1750901549521,0.2813149,107450.0,107440.0,1.27891954]
[1750901550227,0.2813149,107450.0,107440.0,1.63971954]
[1750901551627,0.002,107450.0,107440.0,1.63971954]
[1750901551828,0.002,107450.0,107440.0,2.00232868]
[1750901552827,0.001,107480.0,107470.0,0.1859803]
[1750901553028,0.001,107480.0,107470.0,1.68102944]
[1750901553328,0.001,107480.0,107470.0,1.74352944]
[1750901553532,0.001,107480.0,107470.0,1.81738063]
[1750901554028,0.004,107480.0,107470.0,1.81738063]
[1750901555138,0.006,107480.0,107470.0,1.81738063]
[1750901555837,0.006,107480.0,107470.0,2.10868063]
[1750901558733,0.006,107480.0,107470.0,2.38908977]
[1750901559043,0.006,107480.0,107470.0,2.10868063]
[1750901559432,0.006,107480.0,107470.0,2.38908977]
[1750901559735,0.006,107480.0,107470.0,2.10868063]
[1750901560135,0.006,107480.0,107470.0,2.57517777]
[1750901560842,0.05064384,107510.0,107500.0,0.1859284]
[1750901561144,0.23655494,107510.0,107500.0,1.3298884]
[1750901561347,0.26855494,107510.0,107500.0,1.64059754]
[1750901562043,0.26855494,107510.0,107500.0,1.61029754]
[1750901562243,0.27455494,107510.0,107500.0,1.61029754]
[1750901563546,0.28155494,107510.0,107500.0,1.61129754]
[1750901564046,0.2650111,107510.0,107500.0,1.25049754]
[1750901564447,0.2650111,107510.0,107500.0,0.1869284]
[1750901564645,0.2650111,107510.0,107500.0,0.8088884]
[1750901566148,0.2650111,107510.0,107500.0,0.001]
[1750901566349,0.3950111,107510.0,107500.0,0.1869284]
[1750901567052,0.42067246,107510.0,107500.0,0.1869284]
[1750901567545,0.29067246,107510.0,107500.0,0.1869284]
[1750901568246,0.28467246,107510.0,107500.0,0.1869284]
[1750901568553,0.29467246,107510.0,107500.0,0.1869284]
[1750901569250,0.2690111,107510.0,107500.0,0.1869284]
[1750901570245,0.2620111,107510.0,107500.0,0.1859284]
[1750901570444,0.2620111,107510.0,107500.0,0.1869284]
[1750901571251,0.28769614,107510.0,107500.0,0.1869284]
[1750901571451,0.28769614,107510.0,107500.0,0.51550398]
[1750901572155,0.001,107510.0,107500.0,0.95630398]
[1750901572357,0.001,107510.0,107500.0,1.37827956]
[1750901572654,0.001,107510.0,107500.0,1.04970398]
[1750901575547,0.70724706,107540.0,107530.0,0.1858765]
[1750901575851,0.07550088,107540.0,107530.0,0.5466765]
[1750901576052,0.02659192,107540.0,107530.0,0.97165208]
[1750901576250,0.001,107540.0,107530.0,0.97165208]
[1750901576646,0.001,107540.0,107530.0,1.05434894]
[1750901577149,0.001,107540.0,107530.0,1.13434894]
[1750901577549,0.006,107540.0,107530.0,0.80577336]
[1750901577753,0.006,107540.0,107530.0,1.13434894]
[1750901578149,0.005,107540.0,107530.0,1.13434894]
[1750901578349,0.01,107540.0,107530.0,1.13434894]
[1750901578858,0.006,107540.0,107530.0,1.13434894]
[1750901579055,0.009,107540.0,107530.0,1.13434894]
[1750901579247,0.01749316,107570.0,107560.0,0.1858248]
[1750901579549,0.45822333,107570.0,107560.0,0.49324957]
[1750901579855,0.02662333,107570.0,107560.0,0.49324957]
[1750901580057,0.21243083,107570.0,107560.0,0.22967399]
[1750901580349,0.27373083,107570.0,107560.0,0.52544957]
[1750901580556,0.64353083,107570.0,107560.0,0.16567399]
[1750901580744,0.28273083,107570.0,107560.0,0.16567399]
[1750901580948,0.64353083,107570.0,107560.0,0.16567399]
[1750901581150,0.08792333,107570.0,107560.0,0.49324957]
[1750901581356,0.10092333,107570.0,107560.0,0.0632]
[1750901581660,0.10092333,107570.0,107560.0,0.39177558]
[1750901581952,0.09492333,107570.0,107560.0,0.39177558]
[1750901582258,0.09892333,107570.0,107560.0,0.75257558]
[1750901582447,0.09892333,107570.0,107560.0,0.394]
[1750901582760,0.09892333,107570.0,107560.0,0.001]
[1750901582970,0.45972333,107570.0,107560.0,0.001]
[1750901583159,0.52972333,107570.0,107560.0,0.001]
[1750901583362,0.45972333,107570.0,107560.0,0.001]
[1750901583558,0.62972333,107570.0,107560.0,0.001]
[1750901583752,0.61972333,107570.0,107560.0,0.001]
[1750901584057,0.64972333,107570.0,107560.0,0.001]
[1750901584358,0.28892333,107570.0,107560.0,0.69037558]
[1750901584651,0.09892333,107570.0,107560.0,0.75437558]
[1750901584858,0.09892333,107570.0,107560.0,0.4258]
[1750901584859,0.03762333,107570.0,107560.0,0.4258]
[1750901585057,0.012,107570.0,107560.0,1.39841558]
[1750901585253,0.012,107570.0,107560.0,1.06984]
[1750901585450,0.012,107570.0,107560.0,1.47841558]
[1750901586253,0.012,107570.0,107560.0,1.44114]
[1750901586446,0.012,107570.0,107560.0,1.76971558]
[1750901586655,0.011,107570.0,107560.0,1.76971558]
[1750901587350,0.006,107570.0,107560.0,1.76871558]
[1750901587757,0.006,107570.0,107560.0,1.95465158]
[1750901588154,0.0928,107600.0,107560.0,1.334776]
[1750901588457,0.201,107600.0,107590.0,0.3608]
[1750901588666,0.001,107600.0,107590.0,0.66823169]
[1750901588857,0.001,107600.0,107590.0,0.0636]
[1750901589053,0.3611,107600.0,107580.0,0.37581553]
[1750901589255,0.0301,107590.0,107580.0,0.37581553]
[1750901589458,0.0945,107590.0,107580.0,0.37581553]
[1750901589650,0.0945,107590.0,107580.0,0.70439111]
[1750901589957,0.01,107600.0,107580.0,0.37581553]
[1750901590156,0.4853,107600.0,107580.0,0.01501553]
[1750901590359,0.0619,107590.0,107580.0,0.01501553]
[1750901590658,0.79345477,107590.0,107580.0,0.01501553]
[1750901590855,1.55935077,107590.0,107560.0,0.001]
[1750901591068,0.3608,107570.0,107560.0,0.001]
[1750901591455,0.4222,107570.0,107560.0,0.001]
[1750901591863,0.7622,107570.0,107560.0,0.011]
[1750901592065,0.43877642,107570.0,107560.0,0.001]
[1750901592264,0.46442778,107570.0,107560.0,0.001]
[1750901592659,0.79442778,107570.0,107560.0,0.001]
[1750901592858,0.90300336,107570.0,107560.0,0.001]
[1750901593058,1.51380336,107570.0,107560.0,0.001]
[1750901593458,1.18522778,107570.0,107560.0,0.001]
[1750901593657,1.00522778,107570.0,107560.0,0.001]
[1750901594059,1.00622778,107570.0,107560.0,0.001]
[1750901594366,0.93622778,107570.0,107560.0,0.001]
[1750901594666,0.95622778,107570.0,107560.0,0.001]
[1750901595066,1.16622778,107570.0,107560.0,0.001]
[1750901595464,0.82622778,107570.0,107560.0,0.001]
[1750901595661,1.19622778,107570.0,107550.0,0.34381383]
[1750901595861,0.0982,107560.0,107550.0,0.01523825]
[1750901596062,0.0982,107560.0,107550.0,0.34381383]
[1750901596365,0.48467481,107560.0,107550.0,0.01523825]
[1750901596761,0.83467481,107560.0,107550.0,0.01523825]
[1750901596960,0.48467481,107560.0,107550.0,0.01523825]
[1750901597162,0.48467481,107560.0,107550.0,0.01623825]
[1750901597967,0.0982,107560.0,107550.0,0.34581383]
[1750901598168,0.0982,107560.0,107550.0,0.37581383]
[1750901598369,0.0982,107560.0,107550.0,0.40801383]
[1750901599166,0.12389247,107560.0,107550.0,0.40801383]
[1750901599367,0.12389247,107560.0,107550.0,0.4077949]
[1750901601061,0.02569247,107560.0,107550.0,0.4077949]
[1750901601271,0.02570323,107560.0,107550.0,0.5205949]
[1750901601472,0.02570323,107560.0,107550.0,0.8813949]
[1750901601770,0.094,107570.0,107550.0,1.5491549]
[1750901601977,0.48050183,107570.0,107560.0,0.32857558]
[1750901602366,0.48050183,107570.0,107560.0,0.36137558]
[1750901602871,0.48150183,107570.0,107560.0,0.37678412]
[1750901603280,0.02670183,107570.0,107560.0,0.37678412]
[1750901603569,0.02670183,107570.0,107560.0,0.77078412]
[1750901603775,0.02670183,107570.0,107560.0,0.44220854]
[1750901603975,0.02770183,107570.0,107560.0,0.44220854]
[1750901604176,0.02770183,107570.0,107560.0,0.77078412]
[1750901604376,0.02770183,107570.0,107560.0,0.37620854]
[1750901604377,0.09120183,107570.0,107560.0,0.37620854]
[1750901604576,0.09020183,107570.0,107560.0,0.70478412]
[1750901604772,0.44120183,107570.0,107560.0,0.37620854]
[1750901604975,0.09120183,107570.0,107560.0,0.37620854]
[1750901605678,0.02770183,107570.0,107560.0,0.70478412]
[1750901605879,0.02770183,107570.0,107560.0,0.77038412]
[1750901606976,0.09180183,107570.0,107560.0,0.73768412]
[1750901607879,0.09180183,107570.0,107560.0,0.70478412]
[1750901608981,0.02770183,107570.0,107560.0,0.70478412]
[1750901609183,0.02770183,107570.0,107560.0,0.80178412]
[1750901609675,0.002,107570.0,107560.0,0.88178412]
[1750901614581,0.002,107570.0,107560.0,1.17308412]
[1750901615678,0.002,107570.0,107560.0,0.88178412]
[1750901615876,0.002,107570.0,107560.0,1.65022412]
[1750901616271,0.002,107570.0,107560.0,0.80178412]
[1750901616582,0.002,107570.0,107560.0,1.65006412]
[1750901616982,0.002,107570.0,107560.0,1.73006412]
[1750901617683,0.002,107570.0,107560.0,0.48770854]
[1750901617880,0.002,107570.0,107560.0,1.47656412]
[1750901618078,0.002,107570.0,107560.0,1.17828854]
[1750901618282,0.002,107570.0,107560.0,1.50686412]
[1750901618484,0.002,107570.0,107560.0,1.42686412]
[1750901618782,0.002,107570.0,107560.0,1.50686412]
[1750901620885,0.002,107570.0,107560.0,1.79816412]
[1750901622883,0.002,107570.0,107560.0,1.98410012]
[1750901623077,0.01665935,107590.0,107580.0,0.32857558]
[1750901623283,0.001,107600.0,107580.0,2.26047558]
[1750901623484,0.001,107600.0,107590.0,0.78397558]
[1750901623790,0.0631,107630.0,107590.0,1.19255116]
[1750901623991,0.4131,107630.0,107620.0,0.32857558]
[1750901624189,0.4131,107630.0,107620.0,0.98613558]
[1750901624487,0.4131,107630.0,107620.0,0.68896]
[1750901624684,0.4441,107630.0,107620.0,1.01753558]
[1750901625389,0.146,107630.0,107620.0,1.01753558]
[1750901625588,0.146,107630.0,107620.0,1.04783558]
[1750901625988,0.146,107630.0,107620.0,0.87036]
[1750901626180,0.5707,107630.0,107620.0,0.83896]
[1750901626383,0.2099,107630.0,107620.0,0.83896]
[1750901626589,0.2099,107630.0,107620.0,0.98505558]
[1750901626893,0.2099,107630.0,107620.0,0.98497558]
[1750901627485,0.146,107630.0,107620.0,0.98497558]
[1750901627789,0.146,107630.0,107620.0,1.53024619]
[1750901627790,0.006,107630.0,107620.0,1.53024619]
[1750901628090,0.006,107630.0,107620.0,1.56344619]
[1750901628592,0.006,107630.0,107620.0,0.49847061]
[1750901628889,0.006,107630.0,107620.0,1.30272619]
[1750901629088,0.01652569,107650.0,107620.0,1.74352619]
[1750901629292,0.01652569,107650.0,107640.0,0.68937558]
[1750901629595,0.00683553,107660.0,107640.0,2.29527116]
[1750901629785,0.36093176,107690.0,107650.0,1.08249231]
[1750901629988,0.00013176,107690.0,107680.0,0.68937558]
[1750901630289,0.005,107700.0,107680.0,2.48772944]
[1750901630488,0.0321,107720.0,107690.0,0.72237558]
[1750901630694,0.321,107720.0,107710.0,0.32857558]
[1750901630889,0.321,107720.0,107710.0,0.32882381]
[1750901631100,0.321,107720.0,107710.0,0.44092027]
[1750901631101,0.6818,107720.0,107710.0,0.44092027]
[1750901631286,0.321,107720.0,107710.0,0.11234469]
[1750901631488,0.001,107720.0,107710.0,0.62181669]
[1750901631684,0.00683553,107750.0,107710.0,0.51653237]
[1750901631991,0.00683553,107750.0,107740.0,0.3608]
[1750901632189,0.00683553,107750.0,107740.0,0.48772538]
[1750901632381,0.00683553,107750.0,107740.0,0.48797361]
[1750901632587,0.00683553,107750.0,107740.0,1.00217318]
[1750901632788,0.001,107780.0,107740.0,1.33074876]
[1750901632991,0.0328,107780.0,107770.0,0.3608]
[1750901633194,0.0328,107780.0,107770.0,0.37178938]
[1750901633596,0.0328,107780.0,107770.0,0.00074469]
[1750901633597,0.5636,107780.0,107770.0,0.00074469]
[1750901634399,0.6938,107780.0,107770.0,0.32932027]
[1750901634594,0.123,107780.0,107770.0,0.36142027]
[1750901634788,0.373,107780.0,107770.0,0.36142027]
[1750901635099,0.7338,107780.0,107770.0,0.00074469]
[1750901635285,0.7438,107780.0,107770.0,0.00074469]
[1750901635689,1.241268,107780.0,107770.0,0.00074469]
[1750901635989,1.35294358,107780.0,107770.0,0.00074469]
[1750901636193,0.8388,107780.0,107770.0,0.01617571]
[1750901636699,1.274368,107780.0,107770.0,0.01617571]
[1750901636889,0.8388,107780.0,107770.0,0.01617571]
[1750901637089,0.8388,107780.0,107770.0,0.51479257]
[1750901637289,0.8442551,107780.0,107770.0,0.51479257]
[1750901637491,0.8442551,107780.0,107770.0,0.32932027]
[1750901637690,0.8442551,107780.0,107770.0,0.00074469]
[1750901638194,0.8442551,107780.0,107770.0,0.18622319]
[1750901638392,0.8442551,107780.0,107770.0,0.00074469]
[1750901638797,1.2778231,107780.0,107770.0,0.00074469]
[1750901639001,0.1854958,107760.0,107750.0,0.01527213]
[1750901639202,0.9816,107760.0,107750.0,0.52935171]
[1750901639396,1.0133,107760.0,107750.0,0.52935171]
[1750901639698,1.2310958,107760.0,107750.0,0.52935171]
[1750901640095,1.0456,107760.0,107750.0,0.52935171]
[1750901640293,0.05,107760.0,107750.0,0.61335171]
[1750901640494,0.05,107760.0,107750.0,0.26877613]
[1750901640701,0.5462958,107760.0,107750.0,0.60035171]
[1750901640898,0.6862958,107760.0,107750.0,0.02227213]
[1750901641205,1.50447938,107760.0,107750.0,0.007]
[1750901641391,1.75447938,107760.0,107750.0,0.007]
[1750901641592,1.4259038,107760.0,107750.0,0.007]
[1750901641799,0.185513,107750.0,107740.0,0.01536682]
[1750901641991,0.941313,107750.0,107740.0,0.01499504]
[1750901642300,0.941313,107750.0,107740.0,0.20052524]
[1750901642501,0.941313,107750.0,107740.0,0.01499504]
[1750901642704,0.941313,107750.0,107740.0,0.52910072]
[1750901643300,0.941313,107750.0,107740.0,0.20052514]
[1750901643499,0.941313,107750.0,107740.0,0.52910072]
[1750901643800,0.941313,107750.0,107740.0,0.20252514]
[1750901643996,0.611313,107750.0,107740.0,0.56530072]
[1750901644197,0.691313,107750.0,107740.0,0.59750072]
[1750901644397,0.661313,107750.0,107740.0,0.59750072]
[1750901644596,0.661313,107750.0,107740.0,0.26892514]
[1750901644805,0.596313,107750.0,107740.0,0.59750072]
[1750901645098,0.596313,107750.0,107740.0,1.03830072]
[1750901645099,0.04,107750.0,107740.0,1.03830072]
[1750901645300,0.1855136,107750.0,107740.0,0.31529414]
[1750901645605,0.5463136,107750.0,107740.0,0.64386972]
[1750901646009,0.5463136,107750.0,107740.0,0.31529414]
[1750901646204,0.5463136,107750.0,107740.0,0.64386972]
[1750901646205,0.3921,107750.0,107740.0,0.64386972]
[1750901646399,0.5776138,107750.0,107740.0,0.57946972]
[1750901646709,0.3608,107750.0,107740.0,0.57946972]
[1750901646906,0.7005627,107760.0,107750.0,0.1855138]
[1750901647102,0.83019092,107760.0,107750.0,0.51408938]
[1750901647304,0.87019092,107760.0,107750.0,0.51408938]
[1750901647502,0.1651275,107760.0,107750.0,1.27827296]
[1750901647710,0.1864623,107780.0,107770.0,0.1854795]
[1750901648001,0.5472623,107780.0,107770.0,0.01500276]
[1750901648201,1.1659303,107780.0,107770.0,0.01500276]
[1750901648405,0.1855152,107750.0,107740.0,0.26792084]
[1750901648608,0.5463152,107750.0,107740.0,0.23474906]
[1750901648805,0.5792152,107750.0,107740.0,0.20214906]
[1750901649005,0.6098152,107750.0,107740.0,0.52872464]
[1750901649401,0.6198152,107750.0,107740.0,0.20014906]
[1750901649609,0.6208152,107750.0,107740.0,0.52872464]
[1750901650005,0.6208152,107750.0,107740.0,0.53172464]
[1750901650307,0.6198152,107750.0,107740.0,0.53472464]
[1750901651304,0.6198152,107750.0,107740.0,0.20614906]
[1750901651305,0.6098152,107750.0,107740.0,0.20614906]
[1750901651603,0.6798152,107750.0,107740.0,0.34919884]
[1750901651803,0.9502152,107750.0,107740.0,0.01962326]
[1750901652106,0.7602152,107750.0,107740.0,0.01762326]
[1750901652311,0.7602152,107750.0,107740.0,0.20315536]
[1750901652612,0.6402152,107750.0,107740.0,0.53173094]
[1750901652811,0.6402152,107750.0,107740.0,0.52973094]
[1750901653108,0.6402152,107750.0,107740.0,0.53173094]
[1750901653415,0.7002152,107750.0,107740.0,0.53173094]
[1750901653908,0.7002152,107750.0,107740.0,0.20315536]
[1750901654108,0.7002152,107750.0,107740.0,0.53173094]
[1750901654707,0.6402152,107750.0,107740.0,0.59403094]
[1750901654899,0.3608,107750.0,107740.0,0.59403094]
[1750901655104,0.6556865,107760.0,107750.0,0.1855152]
[1750901655305,0.41451472,107760.0,107750.0,0.57639078]
[1750901655709,0.3685108,107760.0,107750.0,0.57639078]
[1750901656006,0.3685108,107760.0,107750.0,0.59194181]
[1750901656205,0.1854815,107770.0,107760.0,0.2782246]
[1750901656407,0.09,107770.0,107760.0,1.12399038]
[1750901656705,0.001,107780.0,107770.0,0.185481]
[1750901656912,1e-07,107780.0,107770.0,1.02212052]
[1750901657208,1e-07,107780.0,107770.0,1.20768852]
[1750901657411,1e-07,107780.0,107770.0,0.69354494]
[1750901657602,1e-07,107780.0,107770.0,1.02212052]
[1750901657907,1e-07,107780.0,107770.0,0.26274494]
[1750901658116,0.3608001,107780.0,107770.0,0.59132052]
[1750901658313,0.3608001,107780.0,107770.0,0.26274494]
[1750901658512,0.3608001,107780.0,107770.0,0.59132052]
[1750901658716,0.5462642,107780.0,107770.0,0.20044494]
[1750901658903,0.02616147,107780.0,107770.0,0.20044494]
[1750901659105,0.001,107810.0,107800.0,0.1854296]
[1750901659400,0.001,107810.0,107800.0,0.3267296]
[1750901659605,0.001,107810.0,107800.0,0.70101027]
[1750901659814,0.001,107810.0,107800.0,0.66878585]
[1750901660007,0.001,107810.0,107800.0,0.64768349]
[1750901660510,0.3618,107810.0,107800.0,0.64768349]
[1750901660710,0.001,107810.0,107800.0,1.33705907]
[1750901661017,0.001,107810.0,107800.0,1.00848349]
[1750901661313,0.001,107810.0,107800.0,0.67990791]
[1750901661610,0.001,107810.0,107800.0,1.00848349]
[1750901662020,0.001,107810.0,107800.0,0.97538349]
[1750901662207,0.4305,107810.0,107800.0,0.17955762]
[1750901662514,0.4305,107810.0,107800.0,0.5081332]
[1750901662715,0.4705,107810.0,107800.0,0.17955762]
[1750901662912,0.4705,107810.0,107800.0,0.18005408]
[1750901663114,0.5505,107810.0,107800.0,0.50862966]
[1750901663304,0.5505,107810.0,107800.0,0.18005408]
[1750901663616,0.5505,107810.0,107800.0,0.50862966]
[1750901663809,0.4305,107810.0,107800.0,0.18005408]
[1750901664011,0.4305,107810.0,107800.0,0.50862966]
[1750901664417,0.4305,107810.0,107800.0,0.50874749]
[1750901665008,0.4335,107810.0,107800.0,0.50874749]
[1750901665216,0.4335,107810.0,107800.0,0.18017191]
[1750901665520,0.4335,107810.0,107800.0,0.50874749]
[1750901665724,0.4305,107810.0,107800.0,0.18017191]
[1750901666014,0.4335,107810.0,107800.0,0.18017191]
[1750901666213,0.4335,107810.0,107800.0,0.50837643]
[1750901667003,0.4335,107810.0,107800.0,0.17980085]
[1750901667214,0.3698,107810.0,107800.0,0.53897643]
[1750901667418,0.3698,107810.0,107800.0,0.57027643]
[1750901667619,0.3698,107810.0,107800.0,0.24170085]
[1750901667915,0.4348,107810.0,107800.0,0.5707774]
[1750901668119,0.4348,107810.0,107800.0,0.18030182]
[1750901668309,0.4348,107810.0,107800.0,0.5088774]
[1750901668514,1.0757329,107810.0,107800.0,0.01597458]
[1750901668719,1.43590848,107810.0,107800.0,0.01597458]
[1750901668921,1.1073329,107810.0,107800.0,0.01597458]
[1750901669813,1.1073329,107810.0,107800.0,0.0158789]
[1750901670014,1.1073329,107810.0,107800.0,0.00049646]
[1750901670225,1.12442636,107810.0,107800.0,0.01582952]
[1750901672512,1.70300194,107810.0,107800.0,0.01582952]
[1750901672716,2.23118636,107810.0,107800.0,0.01582952]
[1750901673422,2.25451827,107810.0,107800.0,0.01582952]
[1750901673614,2.23118636,107810.0,107800.0,0.01582952]
[1750901674228,2.25448406,107810.0,107800.0,0.01582952]
[1750901674422,2.58305964,107810.0,107800.0,0.01582952]
[1750901674625,2.58305964,107810.0,107780.0,0.185464]
[1750901674626,0.1854475,107790.0,107780.0,0.185464]
[1750901674815,0.8862475,107790.0,107780.0,0.1854647]
[1750901675020,1.0413724,107790.0,107770.0,0.68494417]
[1750901675226,0.2478647,107780.0,107770.0,0.01533747]
[1750901675417,0.9800647,107780.0,107770.0,0.01533747]
[1750901675619,1.8360247,107780.0,107770.0,0.01533747]
[1750901676219,1.8360247,107780.0,107760.0,0.52848877]
[1750901676415,0.4232,107770.0,107760.0,0.2318607]
[1750901676622,0.4832,107770.0,107760.0,0.56043628]
[1750901676826,0.4832,107770.0,107760.0,0.2318607]
[1750901677028,0.6686819,107770.0,107760.0,0.1854863]
[1750901677226,0.68565237,107770.0,107760.0,0.1854863]
[1750901677427,0.84565237,107770.0,107760.0,0.51406188]
[1750901677626,0.63565237,107770.0,107760.0,0.1854863]
[1750901677831,0.63565237,107770.0,107760.0,0.51406188]
[1750901678128,1.81585237,107770.0,107760.0,0.1854863]
[1750901678631,1.81585237,107770.0,107760.0,0.1874863]
[1750901679134,1.81585237,107770.0,107760.0,0.002]